bitfinex/quotes_BTCUSD_20230901
["timestamp","ask_amount","ask_price","bid_price","bid_amount"]
[1693526588359,0.182,25984.0,25983.0,3.51127089]
[1693526588536,0.182,25984.0,25983.0,3.28856678]
[1693526588744,0.182,25984.0,25983.0,3.28988678]
[1693526588961,0.182,25984.0,25983.0,3.26982678]
[1693526589162,0.182,25984.0,25983.0,3.26946678]
[1693526589410,0.182,25984.0,25983.0,3.27186678]
[1693526589611,0.182,25984.0,25983.0,3.52926588]
[1693526589812,0.182,25984.0,25983.0,3.52800588]
[1693526589969,0.182,25984.0,25983.0,3.27150678]
[1693526590149,0.182,25984.0,25983.0,3.27216678]
[1693526590353,0.182,25984.0,25983.0,3.48060954]
[1693526590555,0.182,25984.0,25983.0,3.48174954]
[1693526590791,0.182,25984.0,25983.0,3.48150954]
[1693526591001,0.182,25984.0,25983.0,3.27108678]
[1693526591203,0.182,25984.0,25983.0,3.27318678]
[1693526591388,0.182,25984.0,25983.0,3.27384678]
[1693526591585,0.182,25984.0,25983.0,4.11852678]
[1693526591586,0.0229,25984.0,25983.0,4.11852678]
[1693526591811,0.0229,25984.0,25983.0,4.09956678]
[1693526591963,0.0229,25984.0,25983.0,3.96000678]
[1693526592163,0.0229,25984.0,25983.0,3.95892678]
[1693526592364,0.0329,25984.0,25983.0,3.92282678]
[1693526592585,0.0299,25984.0,25983.0,4.07767678]
[1693526592822,0.0299,25984.0,25983.0,4.11089678]
[1693526593022,0.0299,25984.0,25983.0,4.11803678]
[1693526593256,0.0299,25984.0,25983.0,4.11653678]
[1693526593426,0.0299,25984.0,25983.0,4.11707678]
[1693526593634,0.0299,25984.0,25983.0,4.15245678]
[1693526593838,0.0299,25984.0,25983.0,4.15155678]
[1693526593993,0.0299,25984.0,25983.0,4.11329678]
[1693526594199,0.0299,25984.0,25983.0,4.10363678]
[1693526594400,0.0299,25984.0,25983.0,4.12989678]
[1693526594636,0.0299,25984.0,25983.0,4.09571678]
[1693526594836,0.0299,25984.0,25983.0,4.13319678]
[1693526595039,0.0299,25984.0,25983.0,4.13337678]
[1693526595443,0.0299,25984.0,25983.0,4.13445678]
[1693526595681,0.0299,25984.0,25983.0,4.13451678]
[1693526595885,0.0299,25984.0,25983.0,4.13505678]
[1693526596090,0.0299,25984.0,25983.0,4.13325678]
[1693526596299,0.0299,25984.0,25983.0,4.13535678]
[1693526596499,0.0299,25984.0,25983.0,4.13547678]
[1693526596723,0.0299,25984.0,25983.0,4.13583678]
[1693526596923,0.0299,25984.0,25983.0,4.13601678]
[1693526597127,0.0299,25984.0,25983.0,4.13613678]
[1693526597258,0.0299,25984.0,25983.0,4.13925678]
[1693526597458,0.0299,25984.0,25983.0,4.15257678]
[1693526597661,0.0299,25984.0,25983.0,4.15377678]
[1693526597881,0.0299,25984.0,25983.0,4.13565678]
[1693526598083,0.0299,25984.0,25983.0,4.12473678]
[1693526598338,0.0299,25984.0,25983.0,4.12323678]
[1693526598498,0.0299,25984.0,25983.0,4.12359678]
[1693526598683,0.0299,25984.0,25983.0,4.21228425]
[1693526598883,0.0299,25984.0,25983.0,4.18978425]
[1693526599246,0.0299,25984.0,25983.0,4.11682425]
[1693526599607,0.0299,25984.0,25983.0,4.18156425]
[1693526599811,0.0299,25984.0,25983.0,3.90817678]
[1693526600029,0.0299,25984.0,25983.0,4.17926728]
[1693526600247,0.0299,25984.0,25983.0,4.24406728]
[1693526600456,0.0299,25984.0,25983.0,4.24706728]
[1693526600652,0.0299,25984.0,25983.0,4.24736728]
[1693526600857,0.0299,25984.0,25983.0,4.27932018]
[1693526601176,0.0299,25984.0,25983.0,4.28532018]
[1693526601406,0.0299,25984.0,25983.0,4.28586018]
[1693526601622,0.0299,25984.0,25983.0,4.01878968]
[1693526601834,0.0299,25984.0,25983.0,4.02136968]
[1693526602043,0.0299,25984.0,25983.0,4.03558968]
[1693526602232,0.0299,25984.0,25983.0,4.03798968]
[1693526602561,0.0299,25984.0,25983.0,4.04164968]
[1693526602765,0.0299,25984.0,25983.0,4.04158968]
[1693526602938,0.0299,25984.0,25983.0,4.03543068]
[1693526603376,0.0299,25984.0,25983.0,4.03537068]
[1693526603584,0.0299,25984.0,25983.0,4.04071068]
[1693526603791,0.0299,25984.0,25983.0,4.04101068]
[1693526604013,0.0299,25984.0,25983.0,4.3083417]
[1693526604224,0.0299,25984.0,25983.0,4.03597068]
[1693526604434,0.0299,25984.0,25983.0,4.03699068]
[1693526604658,0.0299,25984.0,25983.0,4.03741068]
[1693526604860,0.0299,25984.0,25983.0,4.04131068]
[1693526605031,0.0299,25984.0,25983.0,4.04149068]
[1693526605234,0.0299,25984.0,25983.0,4.04131068]
[1693526605443,0.0299,25984.0,25983.0,4.04017068]
[1693526605646,0.0299,25984.0,25983.0,4.03933068]
[1693526606050,0.0299,25984.0,25983.0,4.03915068]
[1693526606247,0.0299,25984.0,25983.0,4.03507068]
[1693526606422,0.0299,25984.0,25983.0,4.03561068]
[1693526606629,0.0299,25984.0,25983.0,4.03513068]
[1693526606762,0.0299,25984.0,25983.0,4.03459068]
[1693526607175,0.0299,25984.0,25983.0,4.23698932]
[1693526607376,0.0299,25984.0,25983.0,4.21622932]
[1693526607576,0.0299,25984.0,25983.0,4.21598932]
[1693526607793,0.0299,25984.0,25983.0,4.21592932]
[1693526607995,0.0299,25984.0,25983.0,3.66043642]
[1693526608195,0.0499,25984.0,25983.0,3.65215642]
[1693526608517,0.0499,25984.0,25983.0,3.65347642]
[1693526608716,0.2155,25984.0,25983.0,3.65341642]
[1693526609085,0.2155,25984.0,25983.0,3.65215642]
[1693526609287,0.2155,25984.0,25983.0,3.65233642]
[1693526609436,0.2155,25984.0,25983.0,3.65275642]
[1693526609644,0.2155,25984.0,25983.0,3.65161642]
[1693526609897,0.2155,25984.0,25983.0,3.65173642]
[1693526610104,0.2155,25984.0,25983.0,3.65215642]
[1693526610304,0.2955,25984.0,25983.0,3.65185642]
[1693526610475,0.2955,25984.0,25983.0,3.66463642]
[1693526610631,0.2955,25984.0,25983.0,3.67411642]
[1693526610835,0.2955,25984.0,25983.0,3.66955642]
[1693526611056,0.2955,25984.0,25983.0,3.66925642]
[1693526611329,0.2955,25984.0,25983.0,3.66919642]
[1693526611536,0.2955,25984.0,25983.0,3.58645642]
[1693526616305,0.2955,25984.0,25983.0,2.98016778]
[1693526616513,0.2955,25984.0,25983.0,2.76774778]
[1693526617933,0.2955,25984.0,25983.0,2.19044778]
[1693526621896,0.2955,25984.0,25983.0,0.97978678]
[1693526622096,0.52512486,25984.0,25983.0,0.86108678]
[1693526622311,0.52512486,25984.0,25983.0,0.174]
[1693526622312,2.3597561,25984.0,25983.0,0.174]
[1693526622515,2.7816164,25984.0,25983.0,0.174]
[1693526622716,0.08,25979.0,25978.0,0.04919912]
[1693526622927,1.254778,25979.0,25978.0,0.5362859]
[1693526623135,1.418678,25979.0,25978.0,0.48708678]
[1693526624997,1.418678,25979.0,25978.0,0.50408678]
[1693526624998,0.842289,25979.0,25978.0,0.50408678]
[1693526625379,0.843289,25979.0,25978.0,0.51008678]
[1693526626058,0.2659,25979.0,25978.0,0.72619361]
[1693526626258,0.2659,25979.0,25978.0,1.99971561]
[1693526626465,0.2659,25979.0,25978.0,1.20619778]
[1693526628414,0.2659,25979.0,25978.0,0.62878678]
[1693526629256,0.2659,25979.0,25978.0,1.20619778]
[1693526633243,0.2659,25979.0,25978.0,1.50727429]
[1693526633447,0.2659,25979.0,25978.0,2.08468529]
[1693526633958,0.2659,25979.0,25978.0,2.06168529]
[1693526633959,0.2639,25979.0,25978.0,2.06168529]
[1693526634150,0.2649,25979.0,25978.0,1.81743117]
[1693526634454,0.2649,25979.0,25978.0,1.20919778]
[1693526634671,0.2639,25979.0,25978.0,0.60578678]
[1693526634878,0.2689,25979.0,25978.0,0.67978678]
[1693526635086,0.2659,25979.0,25978.0,0.64278678]
[1693526635270,0.2659,25979.0,25978.0,0.51308678]
[1693526635468,0.2659,25979.0,25978.0,1.09049778]
[1693526635701,0.2649,25979.0,25978.0,1.09049778]
[1693526635877,0.2669,25979.0,25978.0,1.11649778]
[1693526639871,0.2669,25979.0,25978.0,1.69390878]
[1693526640055,0.2669,25979.0,25978.0,1.81260878]
[1693526640494,0.2669,25979.0,25978.0,2.01525848]
[1693526644864,0.2669,25979.0,25978.0,2.59266948]
[1693526645711,0.103,25979.0,25978.0,3.02501549]
[1693526645919,0.103,25979.0,25978.0,3.456443]
[1693526646095,0.103,25979.0,25978.0,3.589043]
[1693526646096,0.023,25979.0,25978.0,3.589043]
[1693526646323,0.023,25979.0,25978.0,3.591923]
[1693526646528,0.022,25979.0,25978.0,3.585563]
[1693526646656,0.02,25979.0,25978.0,3.579003]
[1693526646866,0.021,25979.0,25978.0,3.612243]
[1693526647059,0.021,25979.0,25978.0,4.314643]
[1693526647267,0.1,25980.0,25979.0,0.460161]
[1693526647467,0.1,25980.0,25979.0,3.11811478]
[1693526647663,0.1,25980.0,25979.0,3.23757478]
[1693526647889,0.1,25980.0,25979.0,3.23697478]
[1693526648070,0.1,25980.0,25979.0,3.23691478]
[1693526648414,0.1,25980.0,25979.0,3.23625478]
[1693526648741,0.101,25980.0,25979.0,3.27337478]
[1693526648951,0.101,25980.0,25979.0,3.27319478]
[1693526649137,0.101,25980.0,25979.0,3.27211478]
[1693526649307,0.101,25980.0,25979.0,3.30215478]
[1693526649712,0.1,25980.0,25979.0,3.26737478]
[1693526649917,0.1,25980.0,25979.0,3.22545478]
[1693526650093,0.101,25980.0,25979.0,3.99891478]
[1693526650279,0.1,25980.0,25979.0,3.96155478]
[1693526650479,0.1,25980.0,25979.0,3.92563478]
[1693526650677,0.1,25980.0,25979.0,3.92725478]
[1693526650876,0.1,25980.0,25979.0,3.97091478]
[1693526651079,0.101,25980.0,25979.0,5.05179478]
[1693526651326,0.101,25980.0,25979.0,5.232457]
[1693526651581,0.101,25980.0,25979.0,5.239777]
[1693526651711,0.102,25980.0,25979.0,4.580617]
[1693526651909,0.102,25980.0,25979.0,4.579057]
[1693526652106,0.102,25980.0,25979.0,4.578697]
[1693526652355,0.002,25980.0,25979.0,4.573537]
[1693526652590,0.002,25980.0,25979.0,4.579417]
[1693526652710,0.002,25980.0,25979.0,5.282177]
[1693526652913,0.002,25980.0,25979.0,5.282057]
[1693526653188,0.02,25981.0,25980.0,0.460161]
[1693526653396,0.02,25981.0,25980.0,3.23674878]
[1693526653602,0.1,25982.0,25981.0,0.460161]
[1693526653822,0.1,25982.0,25981.0,3.23667978]
[1693526654002,0.1,25982.0,25981.0,3.35781978]
[1693526654213,0.1,25982.0,25981.0,3.35229978]
[1693526654414,0.1,25982.0,25981.0,3.35331978]
[1693526654542,0.1,25982.0,25981.0,3.35565978]
[1693526654750,0.101,25982.0,25981.0,4.08533978]
[1693526654954,0.101,25982.0,25981.0,4.08023978]
[1693526655171,0.101,25982.0,25981.0,4.08251978]
[1693526655380,0.101,25982.0,25981.0,4.08275978]
[1693526655578,0.101,25982.0,25981.0,4.07969978]
[1693526655784,0.101,25982.0,25981.0,4.07957978]
[1693526655983,0.101,25982.0,25981.0,4.13985978]
[1693526656215,0.101,25982.0,25981.0,4.13079978]
[1693526656434,0.101,25982.0,25981.0,4.13121978]
[1693526656635,0.101,25982.0,25981.0,4.12695978]
[1693526656836,0.101,25982.0,25981.0,4.12575978]
[1693526657045,0.101,25982.0,25981.0,4.12779978]
[1693526657411,0.101,25982.0,25981.0,4.12773978]
[1693526657614,0.101,25982.0,25981.0,4.12749978]
[1693526657865,0.101,25982.0,25981.0,4.3984407]
[1693526658073,0.101,25982.0,25981.0,3.6634007]
[1693526658275,0.101,25982.0,25981.0,3.5909207]
[1693526658797,0.101,25982.0,25981.0,3.6578807]
[1693526659027,0.101,25982.0,25981.0,3.6580607]
[1693526659224,0.101,25982.0,25981.0,3.6584207]
[1693526659426,0.101,25982.0,25981.0,3.6658007]
[1693526659796,0.101,25982.0,25981.0,3.6664007]
[1693526659996,0.101,25982.0,25981.0,3.6665207]
[1693526660162,0.101,25982.0,25981.0,3.6658007]
[1693526660342,0.101,25982.0,25981.0,3.46095978]
[1693526660667,0.101,25982.0,25981.0,3.70932982]
[1693526660845,0.101,25982.0,25981.0,3.70878982]
[1693526661219,0.101,25982.0,25981.0,3.70764982]
[1693526661398,0.101,25982.0,25981.0,3.71076982]
[1693526661597,0.101,25982.0,25981.0,3.71082982]
[1693526661813,0.101,25982.0,25981.0,3.71076982]
[1693526662002,0.101,25982.0,25981.0,3.70746982]
[1693526662132,0.101,25982.0,25981.0,3.70824982]
[1693526662335,0.101,25982.0,25981.0,3.70758982]
[1693526662575,0.101,25982.0,25981.0,3.70728982]
[1693526662779,0.101,25982.0,25981.0,3.70734982]
[1693526662986,0.101,25982.0,25981.0,3.70974982]
[1693526663162,0.101,25982.0,25981.0,3.73516619]
[1693526663377,0.101,25982.0,25981.0,3.73834619]
[1693526663576,0.101,25982.0,25981.0,3.46773978]
[1693526663777,0.101,25982.0,25981.0,3.46965978]
[1693526663977,0.101,25982.0,25981.0,3.69620563]
[1693526664182,0.101,25982.0,25981.0,3.47091978]
[1693526664361,0.101,25982.0,25981.0,3.47397978]
[1693526664560,0.101,25982.0,25981.0,3.69074472]
[1693526664787,0.101,25982.0,25981.0,3.68972472]
[1693526664989,0.101,25982.0,25981.0,3.47931978]
[1693526665142,0.101,25982.0,25981.0,3.48777978]
[1693526665346,0.101,25982.0,25981.0,3.75667308]
[1693526665542,0.101,25982.0,25981.0,3.47907978]
[1693526665772,0.101,25982.0,25981.0,3.47871978]
[1693526666009,0.101,25982.0,25981.0,3.48717978]
[1693526666163,0.101,25982.0,25981.0,4.19341978]
[1693526666360,0.101,25982.0,25981.0,4.19353978]
[1693526666722,0.101,25982.0,25981.0,4.19395978]
[1693526666918,0.101,25982.0,25981.0,4.18837978]
[1693526667116,0.101,25982.0,25981.0,4.19029978]
[1693526667322,0.101,25982.0,25981.0,4.20745978]
[1693526667674,0.101,25982.0,25981.0,4.20625978]
[1693526667850,0.101,25982.0,25981.0,4.20307978]
[1693526668059,0.101,25982.0,25981.0,4.20283978]
[1693526668230,0.101,25982.0,25981.0,4.20271978]
[1693526668443,0.101,25982.0,25981.0,4.20403978]
[1693526668643,0.101,25982.0,25981.0,4.20343978]
[1693526668845,0.101,25982.0,25981.0,4.20325978]
[1693526669025,0.101,25982.0,25981.0,4.20721978]
[1693526669200,0.101,25982.0,25981.0,4.20169978]
[1693526669552,0.101,25982.0,25981.0,4.19239978]
[1693526669703,0.101,25982.0,25981.0,4.19929978]
[1693526669920,0.101,25982.0,25981.0,4.20001978]
[1693526670142,0.021,25982.0,25981.0,4.47753978]
[1693526670342,0.021,25982.0,25981.0,4.504462]
[1693526670541,0.021,25982.0,25981.0,4.509022]
[1693526670785,0.021,25982.0,25981.0,4.503622]
[1693526671008,0.021,25982.0,25981.0,4.505902]
[1693526671203,0.021,25982.0,25981.0,4.503862]
[1693526671365,0.021,25982.0,25981.0,4.505662]
[1693526671610,0.021,25982.0,25981.0,4.507342]
[1693526671745,0.021,25982.0,25981.0,4.370422]
[1693526671947,0.021,25982.0,25981.0,4.361962]
[1693526672169,0.021,25982.0,25981.0,4.367362]
[1693526672490,0.021,25982.0,25981.0,4.357522]
[1693526672697,0.021,25982.0,25981.0,4.357402]
[1693526672892,0.021,25982.0,25981.0,4.357272]
[1693526673231,0.021,25982.0,25981.0,4.357332]
[1693526673368,0.021,25982.0,25981.0,4.357212]
[1693526673569,0.021,25982.0,25981.0,4.355832]
[1693526673768,0.021,25982.0,25981.0,4.355172]
[1693526674008,0.021,25982.0,25981.0,4.354812]
[1693526674173,0.021,25982.0,25981.0,4.355952]
[1693526674474,0.021,25982.0,25981.0,4.355292]
[1693526674696,0.021,25982.0,25981.0,4.357992]
[1693526675025,0.021,25982.0,25981.0,4.360032]
[1693526675277,0.021,25982.0,25981.0,4.359312]
[1693526675479,0.021,25982.0,25981.0,4.361352]
[1693526675679,0.021,25982.0,25981.0,4.361532]
[1693526675834,0.021,25982.0,25981.0,4.358112]
[1693526676034,0.021,25982.0,25981.0,4.358172]
[1693526676386,0.021,25982.0,25981.0,4.356192]
[1693526676528,0.021,25982.0,25981.0,4.355412]
[1693526676760,0.101,25982.0,25981.0,4.355172]
[1693526676990,0.2512,25982.0,25981.0,4.162762]
[1693526677201,0.2512,25982.0,25981.0,4.162822]
[1693526677406,0.2512,25982.0,25981.0,4.162762]
[1693526677616,0.2512,25982.0,25981.0,4.163422]
[1693526677811,0.1712,25982.0,25981.0,4.164022]
[1693526678032,0.2512,25982.0,25981.0,4.161982]
[1693526678233,0.2512,25982.0,25981.0,4.165102]
[1693526678460,0.001,25982.0,25981.0,4.349442]
[1693526678720,0.001,25982.0,25981.0,4.350522]
[1693526678881,0.001,25982.0,25981.0,4.350162]
[1693526679096,0.001,25982.0,25981.0,4.350282]
[1693526679285,0.001,25982.0,25981.0,4.315322]
[1693526679485,0.001,25982.0,25981.0,4.353162]
[1693526679739,0.1299,25984.0,25983.0,0.460161]
[1693526679912,0.1299,25984.0,25983.0,4.39514778]
[1693526680136,0.0499,25984.0,25983.0,4.39514778]
[1693526680251,0.1299,25984.0,25983.0,4.51724778]
[1693526680474,0.1299,25984.0,25983.0,4.50836778]
[1693526680714,0.1299,25984.0,25983.0,4.50818778]
[1693526680994,0.1299,25984.0,25983.0,4.51232778]
[1693526681196,0.1299,25984.0,25983.0,4.55062778]
[1693526681468,0.1299,25984.0,25983.0,4.55056778]
[1693526681586,0.1299,25984.0,25983.0,4.54978778]
[1693526681800,0.1299,25984.0,25983.0,4.58600778]
[1693526682215,0.1299,25984.0,25983.0,4.58666778]
[1693526682431,0.1299,25984.0,25983.0,4.58636778]
[1693526682603,0.1299,25984.0,25983.0,4.58648778]
[1693526682809,0.1299,25984.0,25983.0,4.58930778]
[1693526683039,0.1299,25984.0,25983.0,4.58582778]
[1693526683239,0.1299,25984.0,25983.0,4.54806778]
[1693526683528,0.1299,25984.0,25983.0,4.58444778]
[1693526683736,0.1299,25984.0,25983.0,4.74076778]
[1693526683907,0.1299,25984.0,25983.0,4.74022778]
[1693526684112,0.1299,25984.0,25983.0,4.77918778]
[1693526684465,0.1299,25984.0,25983.0,4.74880778]
[1693526684678,0.0499,25984.0,25983.0,4.74896778]
[1693526684885,0.244,25986.0,25985.0,1.360161]
[1693526684886,0.02,25986.0,25985.0,1.360161]
[1693526685092,0.02,25986.0,25985.0,5.07627178]
[1693526685299,0.1199,25987.0,25986.0,0.460161]
[1693526685508,0.1199,25987.0,25986.0,3.13634678]
[1693526685682,0.1199,25987.0,25986.0,3.23634678]
[1693526686016,0.1199,25987.0,25986.0,3.33030678]
[1693526686191,0.1199,25987.0,25986.0,4.03024678]
[1693526686391,0.1199,25987.0,25986.0,4.30858941]
[1693526686601,0.1199,25987.0,25986.0,4.30810941]
[1693526686794,0.1199,25987.0,25986.0,4.18238941]
[1693526686947,0.1199,25987.0,25986.0,4.17902941]
[1693526687135,0.1199,25987.0,25986.0,4.21792941]
[1693526687336,0.1199,25987.0,25986.0,4.21684941]
[1693526687553,0.1199,25987.0,25986.0,4.21594941]
[1693526687753,0.1199,25987.0,25986.0,3.97364678]
[1693526687962,0.1199,25987.0,25986.0,3.97994678]
[1693526688167,0.1199,25987.0,25986.0,3.97988678]
[1693526688385,0.1199,25987.0,25986.0,3.97964678]
[1693526688592,0.1199,25987.0,25986.0,4.23896708]
[1693526688801,0.1199,25987.0,25986.0,4.16078708]
[1693526689003,0.1199,25987.0,25986.0,3.46078708]
[1693526689877,0.1199,25987.0,25986.0,3.54098748]
[1693526690030,0.1199,25987.0,25986.0,3.27598678]
[1693526690397,0.1199,25987.0,25986.0,3.27388678]
[1693526690597,0.1199,25987.0,25986.0,3.27376678]
[1693526690797,0.1199,25987.0,25986.0,3.27340678]
[1693526690976,0.1199,25987.0,25986.0,3.27370678]
[1693526691193,0.1199,25987.0,25986.0,3.27376678]
[1693526691368,0.1199,25987.0,25986.0,3.27544678]
[1693526691570,0.1199,25987.0,25986.0,3.27520678]
[1693526691780,0.1199,25987.0,25986.0,3.27646678]
[1693526691932,0.1199,25987.0,25986.0,3.28450678]
[1693526692136,0.1199,25987.0,25986.0,3.28426678]
[1693526692341,0.1199,25987.0,25986.0,3.28366678]
[1693526692546,0.1199,25987.0,25986.0,3.28450678]
[1693526692751,0.1199,25987.0,25986.0,3.28252678]
[1693526693066,0.1199,25987.0,25986.0,3.28228678]
[1693526693275,0.1199,25987.0,25986.0,3.47461678]
[1693526693489,0.1199,25987.0,25986.0,3.47443678]
[1693526693693,0.1199,25987.0,25986.0,3.47425678]
[1693526693886,0.1199,25987.0,25986.0,3.47401678]
[1693526694085,0.1199,25987.0,25986.0,3.47563678]
[1693526694310,0.1199,25987.0,25986.0,3.47617678]
[1693526694517,0.1199,25987.0,25986.0,3.47563678]
[1693526694739,0.1199,25987.0,25986.0,3.7393823]
[1693526694939,0.1199,25987.0,25986.0,3.47569678]
[1693526695139,0.1199,25987.0,25986.0,3.47563678]
[1693526695291,0.1199,25987.0,25986.0,3.70826005]
[1693526695513,0.1199,25987.0,25986.0,3.70478005]
[1693526695716,0.1199,25987.0,25986.0,3.67892005]
[1693526695926,0.1199,25987.0,25986.0,3.67580005]
[1693526696122,0.1199,25987.0,25986.0,3.68216005]
[1693526696327,0.1199,25987.0,25986.0,3.68030005]
[1693526696569,0.1199,25987.0,25986.0,3.68402005]
[1693526696832,0.0199,25987.0,25986.0,3.69524005]
[1693526697009,0.1199,25987.0,25986.0,3.69602005]
[1693526697183,0.1199,25987.0,25986.0,3.47323678]
[1693526699046,0.1199,25987.0,25986.0,3.72198459]
[1693526699246,0.1199,25987.0,25986.0,3.52954459]
[1693526699395,0.1199,25987.0,25986.0,3.52876459]
[1693526699617,0.1199,25987.0,25986.0,3.52852459]
[1693526699845,0.1199,25987.0,25986.0,3.51928459]
[1693526700049,0.1199,25987.0,25986.0,3.51916459]
[1693526700271,0.1199,25987.0,25986.0,3.52210459]
[1693526700496,0.1199,25987.0,25986.0,3.52078459]
[1693526700709,0.1199,25987.0,25986.0,3.52018459]
[1693526700937,0.1199,25987.0,25986.0,3.52096459]
[1693526701154,0.1199,25987.0,25986.0,3.52084459]
[1693526701342,0.1199,25987.0,25986.0,3.51754459]
[1693526701497,0.1199,25987.0,25986.0,3.27514678]
[1693526701692,0.1199,25987.0,25986.0,3.49576315]
[1693526701895,0.1199,25987.0,25986.0,3.49480315]
[1693526702103,0.1199,25987.0,25986.0,3.30613705]
[1693526702299,0.1199,25987.0,25986.0,3.30715705]
[1693526702533,0.1199,25987.0,25986.0,3.30727705]
[1693526702724,0.1199,25987.0,25986.0,3.30655705]
[1693526702927,0.1199,25987.0,25986.0,3.54146447]
[1693526703128,0.1199,25987.0,25986.0,3.30487705]
[1693526703326,0.1199,25987.0,25986.0,3.58183814]
[1693526703538,0.1199,25987.0,25986.0,3.58057814]
[1693526703743,0.1199,25987.0,25986.0,3.30613705]
[1693526703943,0.1199,25987.0,25986.0,3.30805705]
[1693526704144,0.1199,25987.0,25986.0,3.30847705]
[1693526704360,0.1199,25987.0,25986.0,3.30781705]
[1693526704588,0.1199,25987.0,25986.0,3.30913705]
[1693526704794,0.1199,25987.0,25986.0,3.30751705]
[1693526705162,0.1199,25987.0,25986.0,3.30715705]
[1693526705363,0.1199,25987.0,25986.0,3.30697705]
[1693526705558,0.1199,25987.0,25986.0,3.55063058]
[1693526705795,0.1199,25987.0,25986.0,3.30655705]
[1693526705997,0.1199,25987.0,25986.0,3.30673705]
[1693526706415,0.1199,25987.0,25986.0,3.30787705]
[1693526706531,0.1199,25987.0,25986.0,3.30757705]
[1693526706734,0.1199,25987.0,25986.0,3.30817705]
[1693526707008,0.1199,25987.0,25986.0,3.30841705]
[1693526707213,0.1199,25987.0,25986.0,3.30775705]
[1693526707536,0.1199,25987.0,25986.0,3.30793705]
[1693526707744,0.1199,25987.0,25986.0,3.30709705]
[1693526707928,0.1199,25987.0,25986.0,3.30715705]
[1693526708077,0.1199,25987.0,25986.0,3.30601705]
[1693526708276,0.1199,25987.0,25986.0,3.5414981]
[1693526708476,0.1199,25987.0,25986.0,3.4577981]
[1693526708698,0.1199,25987.0,25986.0,3.22345705]
[1693526709103,0.1199,25987.0,25986.0,3.28885705]
[1693526709302,0.1199,25987.0,25986.0,3.29149705]
[1693526709510,0.1199,25987.0,25986.0,3.29533705]
[1693526709845,0.1199,25987.0,25986.0,3.29485705]
[1693526709977,0.1199,25987.0,25986.0,3.29833705]
[1693526710177,0.1199,25987.0,25986.0,3.28951705]
[1693526710379,0.1199,25987.0,25986.0,3.28981705]
[1693526710585,0.1199,25987.0,25986.0,3.28993705]
[1693526710811,0.1199,25987.0,25986.0,3.29503705]
[1693526711032,0.1199,25987.0,25986.0,3.29659705]
[1693526711188,0.1199,25987.0,25986.0,3.29803705]
[1693526711389,0.1199,25987.0,25986.0,3.29767705]
[1693526711597,0.1199,25987.0,25986.0,3.29545705]
[1693526712009,0.1199,25987.0,25986.0,3.29551705]
[1693526712206,0.1199,25987.0,25986.0,3.29593705]
[1693526712413,0.1199,25987.0,25986.0,3.29443705]
[1693526712615,0.1199,25987.0,25986.0,3.49727964]
[1693526712819,0.1199,25987.0,25986.0,3.49709964]
[1693526713020,0.1199,25987.0,25986.0,3.49811964]
[1693526713218,0.1199,25987.0,25986.0,3.29545705]
[1693526713415,0.1199,25987.0,25986.0,3.30229705]
[1693526713592,0.1199,25987.0,25986.0,3.30181705]
[1693526713798,0.1199,25987.0,25986.0,3.30163705]
[1693526713994,0.1199,25987.0,25986.0,3.30169705]
[1693526714279,0.1199,25987.0,25986.0,3.30157705]
[1693526714441,0.0399,25987.0,25986.0,3.30175705]
[1693526714637,0.0199,25987.0,25986.0,3.30151705]
[1693526714837,0.0399,25987.0,25986.0,4.17073705]
[1693526715044,0.1199,25987.0,25986.0,4.16551705]
[1693526715398,0.1199,25987.0,25986.0,4.15765705]
[1693526715552,0.1199,25987.0,25986.0,4.15783705]
[1693526715874,0.1199,25987.0,25986.0,4.15759705]
[1693526716048,0.1199,25987.0,25986.0,4.15657705]
[1693526716254,0.1199,25987.0,25986.0,4.15567705]
[1693526716472,0.1199,25987.0,25986.0,4.15939705]
[1693526716647,0.1199,25987.0,25986.0,4.15813705]
[1693526716841,0.1199,25987.0,25986.0,4.15789705]
[1693526717040,0.0199,25987.0,25986.0,4.16575705]
[1693526717240,0.1199,25987.0,25986.0,4.16473705]
[1693526717541,0.1199,25987.0,25986.0,4.16461705]
[1693526717742,0.1199,25987.0,25986.0,4.16593705]
[1693526717961,0.1199,25987.0,25986.0,4.16359705]
[1693526718163,0.0399,25987.0,25986.0,4.16449705]
[1693526718364,0.0399,25987.0,25986.0,4.16383705]
[1693526718691,0.0399,25987.0,25986.0,4.16527705]
[1693526718898,0.0399,25987.0,25986.0,4.16503705]
[1693526719093,0.0399,25987.0,25986.0,4.16497705]
[1693526719312,0.0399,25987.0,25986.0,4.16659705]
[1693526719587,0.0399,25987.0,25986.0,4.16581705]
[1693526719786,0.0399,25987.0,25986.0,4.16635705]
[1693526719961,0.0399,25987.0,25986.0,4.16797705]
[1693526720160,0.0399,25987.0,25986.0,4.16461705]
[1693526720364,0.1199,25987.0,25986.0,4.16047705]
[1693526720570,0.1199,25987.0,25986.0,4.15759705]
[1693526720862,0.1199,25987.0,25986.0,4.15735705]
[1693526721080,0.1199,25987.0,25986.0,4.15723705]
[1693526721238,0.1199,25987.0,25986.0,4.15729705]
[1693526721439,0.1199,25987.0,25986.0,4.15663705]
[1693526721666,0.1199,25987.0,25986.0,4.15651705]
[1693526721865,0.1199,25987.0,25986.0,4.55472872]
[1693526722115,0.1199,25987.0,25986.0,4.38020872]
[1693526722275,0.1199,25987.0,25986.0,4.17011705]
[1693526722473,0.1199,25987.0,25986.0,4.17059705]
[1693526722670,0.1199,25987.0,25986.0,4.37157102]
[1693526722856,0.1199,25987.0,25986.0,3.67175102]
[1693526723058,0.1199,25987.0,25986.0,3.67163102]
[1693526723261,0.1199,25987.0,25986.0,3.47035705]
[1693526723463,0.1199,25987.0,25986.0,3.72922841]
[1693526723667,0.1199,25987.0,25986.0,3.72940841]
[1693526723888,0.1199,25987.0,25986.0,3.72952841]
[1693526724070,0.1199,25987.0,25986.0,3.72586841]